[Event "Late-Titled-Tuesday-Blitz-September-26-2023"]
[Site "Chess.com"]
[Date "2023.09.26"]
[Round "1"]
[White "Zaro1309"]
[Black "Nf3c5"]
[Result "1-0"]
[WhiteElo "2311"]
[BlackElo "2588"]
[TimeControl "180+1"]
[EndTime "14:07:46 PDT"]
[Termination "Zaro1309 won on time"]

1. d4 {[%clk 0:03:00.9]} 1... Nf6 {[%clk 0:02:58.4]} 2. Nf3 {[%clk 0:02:59]}
2... e6 {[%clk 0:02:56.9]} 3. c4 {[%clk 0:02:58]} 3... Bb4+ {[%clk 0:02:54.4]}
4. Bd2 {[%clk 0:02:54.8]} 4... Qe7 {[%clk 0:02:53.9]} 5. a3 {[%clk 0:02:50.8]}
5... Bxd2+ {[%clk 0:02:52]} 6. Nbxd2 {[%clk 0:02:51.7]} 6... a5 {[%clk
0:02:46.4]} 7. g3 {[%clk 0:02:43.5]} 7... d6 {[%clk 0:02:44.8]} 8. Bg2 {[%clk
0:02:43.7]} 8... Nc6 {[%clk 0:02:45.2]} 9. O-O {[%clk 0:02:43.6]} 9... O-O
{[%clk 0:02:43.9]} 10. e4 {[%clk 0:02:37.8]} 10... e5 {[%clk 0:02:42.6]} 11. d5
{[%clk 0:02:17.2]} 11... Nb8 {[%clk 0:02:37.4]} 12. Qc2 {[%clk 0:02:15.6]} 12...
a4 {[%clk 0:02:24.4]} 13. Nb1 {[%clk 0:02:04.6]} 13... Na6 {[%clk 0:02:21.6]}
14. Nc3 {[%clk 0:02:03.1]} 14... Nc5 {[%clk 0:02:21.2]} 15. Nd2 {[%clk
0:02:03.4]} 15... h5 {[%clk 0:01:59.8]} 16. h3 {[%clk 0:01:55.8]} 16... h4
{[%clk 0:01:55.8]} 17. g4 {[%clk 0:01:56]} 17... Nh7 {[%clk 0:01:40]} 18. b4
{[%clk 0:01:45.6]} 18... axb3 {[%clk 0:01:39.6]} 19. Nxb3 {[%clk 0:01:46]} 19...
Na6 {[%clk 0:01:26.7]} 20. Ne2 {[%clk 0:01:35]} 20... Ng5 {[%clk 0:01:18.2]} 21.
f4 {[%clk 0:01:22.6]} 21... exf4 {[%clk 0:01:17]} 22. Rxf4 {[%clk 0:01:23.5]}
22... c5 {[%clk 0:01:04.5]} 23. dxc6 {[%clk 0:01:12.4]} 23... bxc6 {[%clk
0:01:03]} 24. Nbd4 {[%clk 0:01:09.4]} 24... Bd7 {[%clk 0:00:57.5]} 25. Nf5
{[%clk 0:00:50.5]} 25... Qe5 {[%clk 0:00:55.5]} 26. Rd1 {[%clk 0:00:45.6]} 26...
g6 {[%clk 0:00:43.9]} 27. Nxd6 {[%clk 0:00:43.1]} 27... Nc5 {[%clk 0:00:44]} 28.
Qc3 {[%clk 0:00:24.6]} 28... Qxc3 {[%clk 0:00:36.8]} 29. Nxc3 {[%clk 0:00:25.5]}
29... Rxa3 {[%clk 0:00:37.1]} 30. Ne2 {[%clk 0:00:26]} 30... Be6 {[%clk
0:00:34]} 31. Nd4 {[%clk 0:00:24.7]} 31... Nxh3+ {[%clk 0:00:29.1]} 32. Bxh3
{[%clk 0:00:24.9]} 32... Rxh3 {[%clk 0:00:29.7]} 33. Nxc6 {[%clk 0:00:23.1]}
33... Rg3+ {[%clk 0:00:27.3]} 34. Kh2 {[%clk 0:00:23.1]} 34... Bxg4 {[%clk
0:00:26.7]} 35. Rdf1 {[%clk 0:00:19.8]} 35... Ne6 {[%clk 0:00:17.8]} 36. Ne7+
{[%clk 0:00:18.1]} 36... Kg7 {[%clk 0:00:13.7]} 37. Rxf7+ {[%clk 0:00:18.7]}
37... Rxf7 {[%clk 0:00:14.3]} 38. Rxf7+ {[%clk 0:00:19.2]} 38... Kh6 {[%clk
0:00:15.2]} 39. Ng8+ {[%clk 0:00:19]} 39... Kg5 {[%clk 0:00:14.9]} 40. e5 {[%clk
0:00:18.4]} 40... Rh3+ {[%clk 0:00:12.9]} 41. Kg2 {[%clk 0:00:18.5]} 41... Nf4+
{[%clk 0:00:13.3]} 42. Kf2 {[%clk 0:00:18]} 42... Rh2+ {[%clk 0:00:10]} 43. Ke1
{[%clk 0:00:17.3]} 43... Nd3+ {[%clk 0:00:08]} 44. Kf1 {[%clk 0:00:16.5]} 44...
Bh3+ {[%clk 0:00:06.9]} 45. Kg1 {[%clk 0:00:16.2]} 45... Rg2+ {[%clk 0:00:07.4]}
46. Kf1 {[%clk 0:00:16]} 46... Rf2+ {[%clk 0:00:05.5]} 47. Kg1 {[%clk
0:00:16.1]} 47... Rg2+ {[%clk 0:00:04.5]} 48. Kf1 {[%clk 0:00:16.5]} 48... Rg3+
{[%clk 0:00:02.8]} 49. Ke2 {[%clk 0:00:16.1]} 49... Nxe5 {[%clk 0:00:03.3]} 50.
Ne4+ {[%clk 0:00:10.2]} 1-0

[Event "Late-Titled-Tuesday-Blitz-September-26-2023"]
[Site "Chess.com"]
[Date "2023.09.26"]
[Round "1"]
[White "Sokoloco"]
[Black "JoseRemolar"]
[Result "1-0"]
[WhiteElo "2696"]
[BlackElo "2390"]
[TimeControl "180+1"]
[EndTime "14:07:52 PDT"]
[Termination "Sokoloco won on time"]

1. b3 {[%clk 0:03:00.5]} 1... e5 {[%clk 0:02:56.8]} 2. Bb2 {[%clk 0:03:01.4]}
2... Nc6 {[%clk 0:02:55.8]} 3. e3 {[%clk 0:03:02]} 3... Nf6 {[%clk 0:02:55.5]}
4. Nf3 {[%clk 0:03:01.4]} 4... Bd6 {[%clk 0:02:52.5]} 5. d4 {[%clk 0:02:50.2]}
5... exd4 {[%clk 0:02:50.6]} 6. exd4 {[%clk 0:02:51.1]} 6... O-O {[%clk
0:02:48.7]} 7. Be2 {[%clk 0:02:51.8]} 7... Re8 {[%clk 0:02:40.9]} 8. O-O {[%clk
0:02:52.1]} 8... b6 {[%clk 0:02:34.8]} 9. c4 {[%clk 0:02:22.2]} 9... Bb7 {[%clk
0:02:30]} 10. Nc3 {[%clk 0:02:19.1]} 10... Bb4 {[%clk 0:02:22.9]} 11. d5 {[%clk
0:02:16.1]} 11... Ne5 {[%clk 0:02:19.1]} 12. Nxe5 {[%clk 0:02:07.1]} 12... Rxe5
{[%clk 0:02:20]} 13. Bf3 {[%clk 0:01:52.5]} 13... Re8 {[%clk 0:02:02.8]} 14. Qd3
{[%clk 0:01:50.1]} 14... Bf8 {[%clk 0:01:52.2]} 15. Rfe1 {[%clk 0:01:46.9]}
15... d6 {[%clk 0:01:50.8]} 16. Nb5 {[%clk 0:01:42.5]} 16... a6 {[%clk
0:01:42.4]} 17. Nd4 {[%clk 0:01:35.1]} 17... Qd7 {[%clk 0:01:40.7]} 18. Nf5
{[%clk 0:01:34]} 18... Rxe1+ {[%clk 0:01:33.2]} 19. Rxe1 {[%clk 0:01:34.9]}
19... Re8 {[%clk 0:01:32.7]} 20. Rxe8 {[%clk 0:01:18.7]} 20... Qxe8 {[%clk
0:01:33.6]} 21. Bxf6 {[%clk 0:01:17.8]} 21... Qe1+ {[%clk 0:01:33.5]} 22. Qf1
{[%clk 0:01:17.9]} 22... Qxf1+ {[%clk 0:01:34.4]} 23. Kxf1 {[%clk 0:01:18.8]}
23... gxf6 {[%clk 0:01:35.3]} 24. Nd4 {[%clk 0:01:07.7]} 24... Bc8 {[%clk
0:01:32.6]} 25. Be4 {[%clk 0:01:08]} 25... Bh6 {[%clk 0:01:24.4]} 26. Bf5 {[%clk
0:01:05.5]} 26... Bxf5 {[%clk 0:01:01]} 27. Nxf5 {[%clk 0:01:06.4]} 27... Bc1
{[%clk 0:01:01.4]} 28. a4 {[%clk 0:01:00.4]} 28... Kf8 {[%clk 0:00:59.7]} 29.
Ke2 {[%clk 0:01:00.6]} 29... Ke8 {[%clk 0:00:59.1]} 30. Kf3 {[%clk 0:01:00.3]}
30... Kd7 {[%clk 0:00:57.4]} 31. Nd4 {[%clk 0:00:55.7]} 31... h5 {[%clk
0:00:48.7]} 32. Ke4 {[%clk 0:00:55]} 32... Bb2 {[%clk 0:00:45.3]} 33. Nc6 {[%clk
0:00:54]} 33... a5 {[%clk 0:00:36]} 34. Kf5 {[%clk 0:00:53.5]} 34... Ke8 {[%clk
0:00:35.6]} 35. f3 {[%clk 0:00:52.4]} 35... Kf8 {[%clk 0:00:33.3]} 36. Nb8
{[%clk 0:00:50.2]} 36... Ke7 {[%clk 0:00:30.9]} 37. h4 {[%clk 0:00:48.9]} 37...
Bc3 {[%clk 0:00:28.1]} 38. g4 {[%clk 0:00:49.3]} 38... hxg4 {[%clk 0:00:26.3]}
39. fxg4 {[%clk 0:00:50.2]} 39... Ke8 {[%clk 0:00:14.6]} 40. h5 {[%clk
0:00:48.7]} 40... Ke7 {[%clk 0:00:13.9]} 41. h6 {[%clk 0:00:46.1]} 41... Kf8
{[%clk 0:00:14.4]} 42. Nd7+ {[%clk 0:00:45.9]} 42... Kg8 {[%clk 0:00:14.8]} 43.
Nxf6+ {[%clk 0:00:46.7]} 43... Kh8 {[%clk 0:00:11.3]} 44. Ne8 {[%clk 0:00:46.8]}
44... Kh7 {[%clk 0:00:10.5]} 45. g5 {[%clk 0:00:47.4]} 45... Be5 {[%clk
0:00:04.8]} 46. Nxc7 {[%clk 0:00:47]} 46... Kg8 {[%clk 0:00:05.3]} 47. Ne8
{[%clk 0:00:43.2]} 47... Kh8 {[%clk 0:00:03.4]} 48. Nf6 {[%clk 0:00:43.1]} 48...
Bd4 {[%clk 0:00:02.9]} 49. Nd7 {[%clk 0:00:22.4]} 49... Kg8 {[%clk 0:00:02.2]}
50. Ke4 {[%clk 0:00:22.7]} 50... Bf2 {[%clk 0:00:01.6]} 51. Nf6+ {[%clk
0:00:23.2]} 51... Kh8 {[%clk 0:00:01.1]} 52. Ne8 {[%clk 0:00:23.3]} 52... Bg3
{[%clk 0:00:01.4]} 53. Nf6 {[%clk 0:00:17.8]} 53... Be5 {[%clk 0:00:01.3]} 54.
Nd7 {[%clk 0:00:18.5]} 1-0

[Event "Late-Titled-Tuesday-Blitz-September-26-2023"]
[Site "Chess.com"]
[Date "2023.09.26"]
[Round "1"]
[White "DrCeltic"]
[Black "mitrabhaa"]
[Result "0-1"]
[WhiteElo "2439"]
[BlackElo "2831"]
[TimeControl "180+1"]
[EndTime "14:07:53 PDT"]
[Termination "mitrabhaa won by resignation"]

1. e4 {[%clk 0:02:41.5]} 1... c6 {[%clk 0:02:50.6]} 2. d4 {[%clk 0:02:41.4]}
2... d5 {[%clk 0:02:50.3]} 3. exd5 {[%clk 0:02:42.3]} 3... cxd5 {[%clk
0:02:50.4]} 4. c4 {[%clk 0:02:43.2]} 4... Nf6 {[%clk 0:02:51.3]} 5. Nc3 {[%clk
0:02:43.7]} 5... Nc6 {[%clk 0:02:52]} 6. Bg5 {[%clk 0:02:43.7]} 6... Be6 {[%clk
0:02:50.8]} 7. Be2 {[%clk 0:02:43.7]} 7... Qa5 {[%clk 0:02:49.3]} 8. c5 {[%clk
0:02:41.4]} 8... Ne4 {[%clk 0:02:48.5]} 9. Bd2 {[%clk 0:02:39.9]} 9... Nxd2
{[%clk 0:02:35.3]} 10. Qxd2 {[%clk 0:02:40.8]} 10... g6 {[%clk 0:02:35.3]} 11.
Nf3 {[%clk 0:02:41.1]} 11... Bg7 {[%clk 0:02:35.3]} 12. a3 {[%clk 0:02:41.5]}
12... O-O {[%clk 0:02:31.2]} 13. O-O {[%clk 0:02:41.8]} 13... Qc7 {[%clk
0:02:31.4]} 14. h3 {[%clk 0:02:41]} 14... Rad8 {[%clk 0:02:29.8]} 15. b4 {[%clk
0:02:41.3]} 15... a6 {[%clk 0:02:29.3]} 16. Rad1 {[%clk 0:02:38.2]} 16... Bf5
{[%clk 0:02:29.2]} 17. Bd3 {[%clk 0:02:32.8]} 17... Nxd4 {[%clk 0:02:15.5]} 18.
Nxd4 {[%clk 0:02:30.9]} 18... Bxd4 {[%clk 0:02:16.4]} 19. Bxf5 {[%clk 0:02:31]}
19... Bxc3 {[%clk 0:02:16.4]} 20. Qxc3 {[%clk 0:02:29.3]} 20... gxf5 {[%clk
0:02:16.6]} 21. Rd3 {[%clk 0:02:24.8]} 21... f4 {[%clk 0:02:10.3]} 22. Re1
{[%clk 0:02:24.3]} 22... f6 {[%clk 0:02:07]} 23. Re6 {[%clk 0:02:12.3]} 23...
Kf7 {[%clk 0:02:03.4]} 24. Qe1 {[%clk 0:02:06.8]} 24... Qd7 {[%clk 0:02:03.4]}
25. Rb6 {[%clk 0:02:07.1]} 25... e5 {[%clk 0:02:02.9]} 26. Qe2 {[%clk
0:01:59.7]} 26... Kg8 {[%clk 0:02:02.1]} 27. Rd6 {[%clk 0:01:59.3]} 27... Qf7
{[%clk 0:02:01.1]} 28. R3xd5 {[%clk 0:01:57.3]} 28... Qxd5 {[%clk 0:02:00.9]}
29. Rxd5 {[%clk 0:01:57.4]} 29... Rxd5 {[%clk 0:02:01.8]} 30. Qg4+ {[%clk
0:01:57.8]} 30... Kf7 {[%clk 0:01:51.4]} 31. Qh5+ {[%clk 0:01:57.4]} 31... Ke6
{[%clk 0:01:51.5]} 32. Qxh7 {[%clk 0:01:57.2]} 32... Rd7 {[%clk 0:01:51.1]} 33.
Qg6 {[%clk 0:01:47.5]} 33... Rfd8 {[%clk 0:01:43.6]} 34. h4 {[%clk 0:01:46.7]}
34... Rh8 {[%clk 0:01:40.9]} 35. a4 {[%clk 0:01:42.9]} 35... Rxh4 {[%clk
0:01:33.1]} 36. g3 {[%clk 0:01:38]} 36... fxg3 {[%clk 0:01:24.7]} 37. fxg3
{[%clk 0:01:38.9]} 37... Rxb4 {[%clk 0:01:22.4]} 38. Qe8+ {[%clk 0:01:37.4]}
38... Re7 {[%clk 0:01:22.3]} 39. Qc8+ {[%clk 0:01:33.8]} 39... Kf7 {[%clk
0:01:22]} 40. c6 {[%clk 0:01:34.1]} 40... bxc6 {[%clk 0:01:21.7]} 41. Qxc6
{[%clk 0:01:35]} 41... Rb2 {[%clk 0:01:06.5]} 42. Qc4+ {[%clk 0:01:30.8]} 42...
Re6 {[%clk 0:01:03.7]} 43. Qc7+ {[%clk 0:01:26.5]} 43... Kg6 {[%clk 0:01:03]}
44. Qc3 {[%clk 0:01:24]} 44... Reb6 {[%clk 0:01:01]} 45. Qd3+ {[%clk 0:01:23.9]}
45... f5 {[%clk 0:01:00.8]} 46. Qd8 {[%clk 0:01:21.2]} 46... e4 {[%clk
0:00:52.6]} 47. Qg8+ {[%clk 0:01:20.2]} 47... Kf6 {[%clk 0:00:52.6]} 48. Qh8+
{[%clk 0:01:20.4]} 48... Ke6 {[%clk 0:00:52.6]} 49. Qg8+ {[%clk 0:01:20.2]}
49... Ke5 {[%clk 0:00:52.4]} 50. Qg7+ {[%clk 0:01:20.8]} 50... Kd5 {[%clk
0:00:52.1]} 51. Qf7+ {[%clk 0:01:21.4]} 51... Kd4 {[%clk 0:00:51.7]} 52. Qd7+
{[%clk 0:01:19.7]} 52... Ke3 {[%clk 0:00:51]} 53. Qxf5 {[%clk 0:01:19]} 53...
R6b3 {[%clk 0:00:37]} 54. Qf4+ {[%clk 0:01:16.2]} 54... Kd3 {[%clk 0:00:37.1]}
55. Qd6+ {[%clk 0:01:16]} 55... Kc2 {[%clk 0:00:37.4]} 56. Qc6+ {[%clk
0:01:12.4]} 56... Kb1 {[%clk 0:00:36.7]} 57. Qxe4+ {[%clk 0:01:12.4]} 57... Ka1
{[%clk 0:00:36.7]} 58. Qd4 {[%clk 0:01:11]} 58... Rxg3+ {[%clk 0:00:35.9]} 59.
Kh1 {[%clk 0:01:10.6]} 59... Rb3 {[%clk 0:00:33.2]} 60. a5 {[%clk 0:01:09]}
60... Ka2 {[%clk 0:00:33]} 61. Qa4+ {[%clk 0:01:09.3]} 61... Kb1 {[%clk
0:00:33.1]} 62. Qe4+ {[%clk 0:01:09.7]} 62... Rc2 {[%clk 0:00:32.6]} 63. Kg1
{[%clk 0:01:08.5]} 63... Rb5 {[%clk 0:00:23.4]} 64. Kf1 {[%clk 0:01:06]} 64...
Kb2 {[%clk 0:00:22.6]} 65. Qd4+ {[%clk 0:01:06.3]} 65... Ka2 {[%clk 0:00:22.2]}
66. Qd1 {[%clk 0:01:00.2]} 66... Rb1 {[%clk 0:00:21.6]} 0-1

[Event "Late-Titled-Tuesday-Blitz-September-26-2023"]
[Site "Chess.com"]
[Date "2023.09.26"]
[Round "1"]
[White "falzehope0"]
[Black "SlipperySpeedster"]
[Result "1-0"]
[WhiteElo "2351"]
[BlackElo "2626"]
[TimeControl "180+1"]
[EndTime "14:07:53 PDT"]
[Termination "falzehope0 won by resignation"]

1. d4 {[%clk 0:03:00.9]} 1... d5 {[%clk 0:02:58.4]} 2. e3 {[%clk 0:03:01.8]}
2... Nf6 {[%clk 0:02:56.1]} 3. Bd3 {[%clk 0:03:01.8]} 3... c5 {[%clk 0:02:52.7]}
4. c3 {[%clk 0:03:01.8]} 4... Nc6 {[%clk 0:02:50.5]} 5. f4 {[%clk 0:03:02]} 5...
g6 {[%clk 0:02:34.4]} 6. Nf3 {[%clk 0:03:00.2]} 6... Bg7 {[%clk 0:02:32.5]} 7.
O-O {[%clk 0:03:00.3]} 7... O-O {[%clk 0:02:29.1]} 8. Nbd2 {[%clk 0:03:00]} 8...
a6 {[%clk 0:02:19.6]} 9. Qe1 {[%clk 0:02:59]} 9... b5 {[%clk 0:02:18.1]} 10. b3
{[%clk 0:02:58.5]} 10... b4 {[%clk 0:02:11.8]} 11. Bb2 {[%clk 0:02:56.1]} 11...
Qa5 {[%clk 0:01:52.1]} 12. c4 {[%clk 0:02:54.6]} 12... cxd4 {[%clk 0:01:36.9]}
13. exd4 {[%clk 0:02:54.1]} 13... dxc4 {[%clk 0:01:32.7]} 14. Nxc4 {[%clk
0:02:46.5]} 14... Qh5 {[%clk 0:01:31.4]} 15. Nfe5 {[%clk 0:02:44]} 15... Bb7
{[%clk 0:01:28.3]} 16. f5 {[%clk 0:02:26.3]} 16... Rad8 {[%clk 0:01:10.6]} 17.
Be2 {[%clk 0:02:25]} 17... Qg5 {[%clk 0:01:04.2]} 18. Bf3 {[%clk 0:02:23.3]}
18... Nd5 {[%clk 0:00:55]} 19. Bc1 {[%clk 0:02:15.8]} 19... Qf6 {[%clk
0:00:48.6]} 20. fxg6 {[%clk 0:02:14.1]} 20... Qe6 {[%clk 0:00:34.1]} 21. gxf7+
{[%clk 0:02:04.4]} 21... Rxf7 {[%clk 0:00:34.2]} 22. Nxf7 {[%clk 0:01:55.5]}
22... Bxd4+ {[%clk 0:00:28.3]} 23. Be3 {[%clk 0:01:35.3]} 23... Nxe3 {[%clk
0:00:26.8]} 24. Nxe3 {[%clk 0:01:31.1]} 24... Qxe3+ {[%clk 0:00:15.9]} 25. Qxe3
{[%clk 0:01:18]} 25... Bxe3+ {[%clk 0:00:16.8]} 26. Kh1 {[%clk 0:01:18.5]} 26...
Rf8 {[%clk 0:00:17.3]} 27. Bd5 {[%clk 0:01:14.4]} 27... Kg7 {[%clk 0:00:16.5]}
28. Rae1 {[%clk 0:01:08]} 28... Bc5 {[%clk 0:00:15.3]} 29. Ng5 {[%clk
0:01:03.8]} 29... Rxf1+ {[%clk 0:00:14.4]} 30. Rxf1 {[%clk 0:01:04.7]} 30... Nd8
{[%clk 0:00:11]} 31. Bxb7 {[%clk 0:01:01.3]} 31... Nxb7 {[%clk 0:00:11.9]} 32.
Ne6+ {[%clk 0:00:47.4]} 32... Kg6 {[%clk 0:00:11.6]} 33. Nxc5 {[%clk 0:00:48.3]}
33... Nxc5 {[%clk 0:00:12.3]} 34. Rc1 {[%clk 0:00:46.1]} 34... Ne4 {[%clk
0:00:12.2]} 35. Rc6+ {[%clk 0:00:44.7]} 35... Kf5 {[%clk 0:00:11]} 36. Rxa6
{[%clk 0:00:45.6]} 36... Nc3 {[%clk 0:00:11.4]} 37. a4 {[%clk 0:00:39.9]} 37...
e5 {[%clk 0:00:10.2]} 38. Kg1 {[%clk 0:00:34.8]} 38... Ke4 {[%clk 0:00:09.4]}
39. Rb6 {[%clk 0:00:32.6]} 39... Nd5 {[%clk 0:00:08.3]} 40. Rb5 {[%clk
0:00:24.6]} 40... Kd4 {[%clk 0:00:08.4]} 41. Rxd5+ {[%clk 0:00:19.6]} 41... Kxd5
{[%clk 0:00:08.5]} 42. Kf2 {[%clk 0:00:19.9]} 42... Kd4 {[%clk 0:00:08.8]} 43.
Ke2 {[%clk 0:00:20.3]} 43... Kc3 {[%clk 0:00:09.2]} 44. a5 {[%clk 0:00:20.7]}
44... Kxb3 {[%clk 0:00:09.8]} 45. a6 {[%clk 0:00:21.4]} 45... Kc2 {[%clk
0:00:10.5]} 46. a7 {[%clk 0:00:22.3]} 46... b3 {[%clk 0:00:11.4]} 47. a8=Q
{[%clk 0:00:22.8]} 47... b2 {[%clk 0:00:12.3]} 48. Qc6+ {[%clk 0:00:22.5]} 48...
Kb3 {[%clk 0:00:13.2]} 49. Qb5+ {[%clk 0:00:22.2]} 49... Kc2 {[%clk 0:00:13.8]}
50. Qxe5 {[%clk 0:00:21]} 50... b1=Q {[%clk 0:00:13.9]} 51. Qe4+ {[%clk
0:00:21.4]} 51... Kc1 {[%clk 0:00:14.6]} 52. Qxb1+ {[%clk 0:00:21.5]} 52... Kxb1
{[%clk 0:00:15.5]} 53. Ke3 {[%clk 0:00:21.8]} 53... Kc2 {[%clk 0:00:16.4]} 54.
g4 {[%clk 0:00:21.3]} 54... Kc3 {[%clk 0:00:16.3]} 55. g5 {[%clk 0:00:20.4]}
55... Kc4 {[%clk 0:00:17]} 56. Ke4 {[%clk 0:00:20.9]} 56... Kc5 {[%clk
0:00:17.4]} 57. Ke5 {[%clk 0:00:21.4]} 57... Kc6 {[%clk 0:00:18]} 58. Ke6 {[%clk
0:00:21.9]} 58... Kc7 {[%clk 0:00:18.1]} 59. h4 {[%clk 0:00:20.7]} 59... Kd8
{[%clk 0:00:18.4]} 60. Kf7 {[%clk 0:00:21.1]} 60... Kd7 {[%clk 0:00:17.3]} 61.
h5 {[%clk 0:00:21.4]} 61... Kc6 {[%clk 0:00:17.1]} 62. g6 {[%clk 0:00:21.9]} 1-0

[Event "Late-Titled-Tuesday-Blitz-September-26-2023"]
[Site "Chess.com"]
[Date "2023.09.26"]
[Round "1"]
[White "bylavochka"]
[Black "Kazmin_Semyon"]
[Result "1-0"]
[WhiteElo "2193"]
[BlackElo "2507"]
[TimeControl "180+1"]
[EndTime "14:07:56 PDT"]
[Termination "bylavochka won by resignation"]

1. e4 {[%clk 0:02:50.6]} 1... d5 {[%clk 0:02:54.8]} 2. exd5 {[%clk 0:02:49.5]}
2... Qxd5 {[%clk 0:02:54.1]} 3. Nc3 {[%clk 0:02:45.9]} 3... Qd8 {[%clk 0:02:55]}
4. d4 {[%clk 0:02:44.1]} 4... Nf6 {[%clk 0:02:53.6]} 5. h3 {[%clk 0:02:39.7]}
5... Bf5 {[%clk 0:02:50.1]} 6. Nf3 {[%clk 0:02:39.5]} 6... e6 {[%clk 0:02:50.4]}
7. Bd3 {[%clk 0:02:31.9]} 7... Bxd3 {[%clk 0:02:47]} 8. Qxd3 {[%clk 0:02:32.8]}
8... Nbd7 {[%clk 0:02:47]} 9. O-O {[%clk 0:02:32.2]} 9... c5 {[%clk 0:02:46.9]}
10. d5 {[%clk 0:02:24.5]} 10... e5 {[%clk 0:02:21.5]} 11. Re1 {[%clk 0:01:55.3]}
11... Bd6 {[%clk 0:02:07.1]} 12. Nb5 {[%clk 0:01:55.4]} 12... Qb6 {[%clk
0:01:55.9]} 13. Bf4 {[%clk 0:01:18.5]} 13... O-O {[%clk 0:01:48.5]} 14. Nxd6
{[%clk 0:01:17.4]} 14... Qxd6 {[%clk 0:01:49.4]} 15. Nxe5 {[%clk 0:00:59.8]}
15... Nxe5 {[%clk 0:01:47.3]} 16. Rxe5 {[%clk 0:00:54.3]} 16... Qb6 {[%clk
0:01:34.7]} 17. b3 {[%clk 0:00:52]} 17... Rad8 {[%clk 0:01:33.2]} 18. c4 {[%clk
0:00:51.7]} 18... Qa6 {[%clk 0:01:31.7]} 19. Re2 {[%clk 0:00:51.3]} 19... b5
{[%clk 0:01:27.3]} 20. cxb5 {[%clk 0:00:45.2]} 20... Qb7 {[%clk 0:01:27.1]} 21.
d6 {[%clk 0:00:45.3]} 21... Nd5 {[%clk 0:01:26.9]} 22. Bg3 {[%clk 0:00:43.3]}
22... Rd7 {[%clk 0:01:19]} 23. Rd1 {[%clk 0:00:42.9]} 23... Nb4 {[%clk
0:01:17.8]} 24. Qc4 {[%clk 0:00:43.3]} 24... Rc8 {[%clk 0:01:15.1]} 25. Rde1
{[%clk 0:00:42]} 25... Rdd8 {[%clk 0:01:12.4]} 26. Re7 {[%clk 0:00:41.1]} 26...
Qd5 {[%clk 0:01:03.9]} 27. Rxa7 {[%clk 0:00:35.2]} 27... Rf8 {[%clk 0:00:47.4]}
28. Ree7 {[%clk 0:00:30.8]} 28... Qd1+ {[%clk 0:00:41.3]} 29. Kh2 {[%clk
0:00:30.6]} 29... Nd5 {[%clk 0:00:42]} 30. Re5 {[%clk 0:00:26.8]} 30... Nb6
{[%clk 0:00:40.4]} 31. Qc3 {[%clk 0:00:20]} 31... Qxd6 {[%clk 0:00:38.1]} 32.
Rg5 {[%clk 0:00:20.3]} 32... Qd4 {[%clk 0:00:38.1]} 33. Qf3 {[%clk 0:00:11.3]}
33... Rce8 {[%clk 0:00:32.9]} 34. a4 {[%clk 0:00:10.5]} 34... h6 {[%clk
0:00:29.3]} 35. Rg4 {[%clk 0:00:10.3]} 35... Qb2 {[%clk 0:00:20.6]} 36. a5
{[%clk 0:00:09.9]} 36... Nd5 {[%clk 0:00:21.2]} 37. Qxd5 {[%clk 0:00:09.7]}
37... Re1 {[%clk 0:00:20.8]} 38. Bd6 {[%clk 0:00:08.7]} 38... Qf6 {[%clk
0:00:10.3]} 39. Bxf8 {[%clk 0:00:07.4]} 39... Qxf2 {[%clk 0:00:11]} 40. Rxg7+
{[%clk 0:00:04.9]} 40... Kh8 {[%clk 0:00:11.6]} 41. Raxf7 {[%clk 0:00:03]} 41...
Qg1+ {[%clk 0:00:11]} 42. Kg3 {[%clk 0:00:03.6]} 42... Re3+ {[%clk 0:00:09.8]}
43. Kh4 {[%clk 0:00:04.3]} 43... Qe1+ {[%clk 0:00:09.3]} 44. g3 {[%clk
0:00:04.7]} 44... Re4+ {[%clk 0:00:09.8]} 45. Rg4 {[%clk 0:00:05.2]} 45... Rxg4+
{[%clk 0:00:07.2]} 46. Kxg4 {[%clk 0:00:06.1]} 46... Qe2+ {[%clk 0:00:07.2]} 47.
Kh4 {[%clk 0:00:05.8]} 47... Qe8 {[%clk 0:00:06]} 48. Bg7+ {[%clk 0:00:04.9]}
48... Kh7 {[%clk 0:00:06.6]} 49. Qf5+ {[%clk 0:00:04.3]} 49... Kg8 {[%clk
0:00:07.3]} 50. Rf8+ {[%clk 0:00:04.6]} 50... Kxg7 {[%clk 0:00:08.2]} 51. Rxe8
{[%clk 0:00:04.3]} 1-0